Cogmind - Beta 14 @@@ ROGUE MODE // 2024.10.30 @ 14:07:55 Player: NextToZero Result: Destroyed by G-73 Enforcer with Phase Gun Performance ------------- Evolutions (8) 4000 Regions Visited (19) 3800 Robots Destroyed (101) 505 Value Destroyed (4426) 4426 Prototype IDs (35) 700 Alien Tech Used (0) 0 Bonus (2438) 2438 TOTAL SCORE: 15869 Bonus ------- High Alert Combat Kills 345 Follower Combat Kills 93 Entered Garrisons 200 Used RIF Installer 500 Entered DSFs 1000 Aligned with FarCom 300 Cogmind --------- Core Integrity 0/1450 Matter 33/300 Energy 71/100 System Corruption 11% Temperature Cool (9) Movement Core (50) Location -2/Research Parts ------- > --- POWER (4) -------- (None) > --- PROPULSION (5) --- (None) > --- UTILITY (8) ------ (None) > --- WEAPON (6) ------- (None) > --- INVENTORY (5) ---- Improved Targeting Computer Relay Coupler [Swarmer] (42) Peak State ------------ > --- POWER ------------ Quantum Reactor Quantum Reactor Quantum Reactor > --- PROPULSION ------- Armored Medium Treads Biometal Heavy Treads Biometal Heavy Treads > --- UTILITY ---------- Improved Cryofiber Web Compact Battery Advanced Transmission Jammer Improved Hacking Suite System Shield System Shield Advanced Corruption Screen Long-range Tractor Beam > --- WEAPON ----------- Gatling Laser Long-range Phase Cannon Enhanced Nova Cannon Fusion Bomb Launcher Improved Remote Datajack Power Sword > --- INVENTORY -------- Biometal Heavy Treads Improved Target Analyzer Relay Coupler [Swarmer] [Rating: 151] Favorites ----------- Power Light Angular Momentum Engine Engine Light Angular Momentum Engine Power Core Micro Nuclear Core Reactor Quantum Reactor Propulsion Cooled Nuclear Pulse Thruster Treads Light Treads Leg Flexi-carbon Leg Wheel Compact Wheel Hover Unit Improved Linear Gravjet Flight Unit Cooled Nuclear Pulse Thruster Utility Improved Medium Armor Plating Device Advanced Heat Sink Storage Medium Storage Unit Processor Advanced Corruption Screen Hackware System Shield Protection Improved Medium Armor Plating Weapon Power Sword Energy Gun Heavy Laser Energy Cannon YOLO Cannon Ballistic Gun Light Assault Rifle Ballistic Cannon Mass Driver Launcher Fusion Bomb Launcher Special Weapon Improved Remote Datajack Slashing Weapon Power Sword Piercing Weapon Lance Special Melee Weapon Improved Datajack Build | -11 -10 -10 -10 -9 -8 -7 -7 -6 -5 -5 -5 -4 -4 -4 -4 -3 -3 -3 -2 ------- Run | Yrd Mat Min Exi Min Mat Fac DSF Fac Fac Gar Fac Fac Upp Upp War Pro Res DSF Res Slots Evolved 16 | . . . . . 4 2 . 2 2 . . 2 . . . . 2 . 2 Power 3 | . . . . . 1 . . . . . . 1 . . . . 1 . . Propulsion 3 | . . . . . 1 1 . . . . . 1 . . . . . . . Utility 6 | . . . . . 1 1 . 1 1 . . . . . . . 1 . 1 Weapon 4 | . . . . . 1 . . 1 1 . . . . . . . . . 1 Parts Attached 220 | 7 1 13 . 8 24 5 6 54 9 21 12 6 8 4 . 6 9 19 8 Power 25 | 1 . 1 . 1 3 1 . 8 . 3 . . 2 . . 1 . 3 1 Engine 12 | 1 . 1 . 1 2 . . 5 . 1 . . 1 . . . . . . Core 8 | . . . . . 1 1 . 3 . 2 . . 1 . . . . . . Reactor 5 | . . . . . . . . . . . . . . . . 1 . 3 1 Propulsion 59 | 2 . 2 . 5 8 1 1 13 6 5 4 2 . . . 2 4 3 1 Treads 15 | . . . . 1 8 . 1 . . . . . . . . . 1 3 1 Leg 21 | . . . . 1 . 1 . 13 5 1 . . . . . . . . . Wheel 5 | 2 . . . 3 . . . . . . . . . . . . . . . Hover 1 | . . . . . . . . . . . . . . . . . 1 . . Flight 17 | . . 2 . . . . . . 1 4 4 2 . . . 2 2 . . Utility 58 | 2 . 1 . 1 7 2 4 16 2 5 4 2 . 3 . 1 1 5 2 Device 25 | 1 . 1 . . 2 . 1 8 . 1 3 2 . 3 . 1 . 2 . Storage 5 | 1 . . . . 2 . . . 1 . 1 . . . . . . . . Processor 9 | . . . . 1 1 . 1 1 . 2 . . . . . . 1 1 1 Hackware 4 | . . . . . . . . . . 1 . . . . . . . 2 1 Protection 15 | . . . . . 2 2 2 7 1 1 . . . . . . . . . Artifact . | . . . . . . . . . . . . . . . . . . . . Weapon 78 | 2 1 9 . 1 6 1 1 17 1 8 4 2 6 1 . 2 4 8 4 Energy Gun 17 | 1 1 . . . 1 . . 6 . 2 . . 1 1 . . 2 2 . Energy Cannon 7 | . . . . . 1 . . . . 1 1 . . . . . . . 4 Ballistic Gun 25 | 1 . 8 . 1 3 1 1 1 . . . 2 4 . . 2 1 . . Ballistic Cannon 4 | . . . . . . . . . . 4 . . . . . . . . . Launcher 8 | . . . . . 1 . . 2 . . . . . . . . 1 4 . Special Weapon 1 | . . . . . . . . . . . . . . . . . . 1 . Impact Weapon . | . . . . . . . . . . . . . . . . . . . . Slashing Weapon 13 | . . . . . . . . 8 1 . 2 . 1 . . . . 1 . Piercing Weapon 1 | . . . . . . . . . . . 1 . . . . . . . . Special Melee Weapon 2 | . . 1 . . . . . . . 1 . . . . . . . . . Unidentified Prototypes 5 | . . . . . 3 . . . 1 . . . . . . . . . 1 Corrupted Parts 3 | . . . . . . . . 1 . 1 . . . . . 1 . . . System Corruption 16 | . . . . . . . . 5 . 1 . . . . . 10 . . . Parts Lost 54 | . . . . . 2 . 1 10 . 4 . . . . 1 8 . 13 15 Power 13 | . . . . . 1 . . 3 . 2 . . . . 1 1 . 2 3 Propulsion 13 | . . . . . 1 . . 2 . . . . . . . 5 . 2 3 Utility 8 | . . . . . . . 1 1 . . . . . . . 2 . 1 3 Weapon 20 | . . . . . . . . 4 . 2 . . . . . . . 8 6 Highest Loss Streak 14 | . . . . . 2 . 1 4 . 2 . . . . 1 4 . 6 14 To Critical Strikes . | . . . . . . . . . . . . . . . . . . . . Average Slot Usage (%) 84 | . 100 97 100 99 86 84 83 93 98 82 91 80 83 84 82 65 54 65 64 Engine 7 | . 14 14 14 14 14 8 7 7 11 5 . . 4 5 3 . . . . Core 3 | . . . . . 1 5 7 4 . 4 11 10 10 10 10 7 4 2 . Reactor 1 | . . . . . . . . . . . . . . . . 2 . 5 8 Treads 8 | . . . . . 24 23 24 7 . . . . . . . . 4 10 10 Leg 6 | . . . . . . . . 18 23 10 . . . . . . . . . Wheel 1 | . 28 2 . 10 1 . . . . . . . . . . . . . . Flight 6 | . . 24 28 15 . . . . . 12 23 23 26 26 26 19 7 2 . Device 11 | . 14 24 28 17 13 7 3 11 5 2 12 20 21 23 26 17 14 10 9 Storage 5 | . 14 2 . . 6 7 7 6 5 5 4 5 5 5 5 5 4 4 3 Processor 3 | . . . . 10 2 . 4 . 5 7 9 5 5 2 . . 1 8 3 Protection 5 | . . . . . 4 15 11 12 15 5 . . . . . . . . . Energy Gun 3 | . 14 1 . . . . . 10 5 4 9 5 1 1 5 1 7 2 1 Energy Cannon 2 | . . . . . 8 7 7 1 . . 1 . . . . . . . 6 Ballistic Gun 6 | . 14 26 28 28 9 7 7 4 . . . 5 4 3 . 5 3 . . Launcher 1 | . . . . . . . . . . . . . . . . . 2 12 2 Slashing Weapon 4 | . . . . . . . . 4 23 13 5 5 4 5 5 3 . 2 3 Peak Build Rating 151 | 9 10 10 11 15 48 53 54 65 79 88 86 92 88 77 77 83 90 141 151 Average Rating 59 | 5 9 9 10 12 42 51 50 56 75 69 80 81 75 73 76 63 66 109 113 On Entrance 52 | . 9 10 9 11 13 48 51 54 65 73 83 74 87 72 77 76 31 90 121 Naked Turns 56 | . . . . . . . . . . . . . . . . . . . 56 Heaviest Build 109 | 13 15 15 7 10 59 65 62 73 78 68 63 39 42 30 28 44 37 109 107 Greatest Support 180 | 32 32 32 8 32 63 63 83 83 75 70 36 33 45 45 30 45 30 180 177 Greatest Overweight (x) 21 | 1 . 3 . . 1 1 . 1 1 1 1 1 1 . . 3 1 2 21 Average Overweight (x) . | . . . . . . . . . . . . . . . . . . . . Largest Inventory Capacity 15 | 8 8 8 5 5 10 10 10 10 15 15 15 5 5 5 5 5 5 5 5 Average Capacity 8 | 7 8 5 5 5 8 10 10 10 12 15 11 5 5 5 5 5 5 5 5 Most Carried 15 | 2 5 5 5 5 10 10 10 10 15 15 10 5 5 5 5 5 5 5 5 Average Carried 7 | . 2 4 4 5 8 9 9 9 11 13 8 4 4 5 5 4 4 4 3 Final Capacity 15 | 8 8 5 5 5 10 10 10 10 15 15 5 5 5 5 5 5 5 5 5 Final Carried 15 | 2 5 5 5 5 10 10 10 10 15 10 5 5 5 5 5 5 5 5 2 Class Distribution -------------------- 22% | Scavenger-Skirmisher 15% | Scavenger-Tank 13% | Scavenger-Gladiator 9% | Scavenger-Mutant 6% | Scavenger-Sprinter 6% | Hacker-Skirmisher 5% | Skirmisher 5% | Tank 5% | Mutant 3% | Scavenger-Scout Dominant Class ---------------- Mutant | -10/Materials Scavenger-Mutant | -10/Mines Scavenger-Mutant | -10/Exiles Scavenger-Scout | -9/Mines Scavenger-Skirmisher | -8/Materials Tank | -7/Factory Tank | -7/DSF Scavenger-Tank | -6/Factory Scavenger-Gladiator | -5/Factory Scavenger-Gladiator | -5/Garrison Scavenger-Gunner | -5/Factory Scavenger-Mutant | -4/Factory Scavenger-Sprinter | -4/Upper Caves Scavenger-Sprinter | -4/Upper Caves Scavenger-Sprinter | -4/Warlord Scavenger-Mutant | -3/Proximity Caves Scavenger-Skirmisher | -3/Research Skirmisher | -3/DSF Hacker-Skirmisher | -2/Research Resources | -11 -10 -10 -10 -9 -8 -7 -7 -6 -5 -5 -5 -4 -4 -4 -4 -3 -3 -3 -2 ----------- Run | Yrd Mat Min Exi Min Mat Fac DSF Fac Fac Gar Fac Fac Upp Upp War Pro Res DSF Res Matter Collected 2849 | 176 93 92 . 160 264 . 201 735 154 250 9 84 265 30 . 90 . 236 10 Remotely 14 | . . . . . . . . . . . . . . . . . . 4 10 Salvage Created 4640 | 24 93 37 . 99 973 . 773 1075 293 399 9 84 189 83 . 85 . 348 76 Parts 200 | 6 7 5 . 2 49 . 33 46 5 13 2 2 13 4 . 6 . 6 1 Haulers Intercepted 3 | . . . . . 1 . . 1 1 . . . . . . . . . . Recyclers Shooed 1 | . . . . . . . . 1 . . . . . . . . . . . Parts Field Recycled . | . . . . . . . . . . . . . . . . . . . . Retrieved Matter . | . . . . . . . . . . . . . . . . . . . . Parts Self-Destructed 16 | . . . . . . . . . . . . . 9 2 . 5 . . . Prevented 2 | . . . . . . . . . . . . . . . . 2 . . . Kills | -11 -10 -10 -10 -9 -8 -7 -7 -6 -5 -5 -5 -4 -4 -4 -4 -3 -3 -3 -2 ------- Run | Yrd Mat Min Exi Min Mat Fac DSF Fac Fac Gar Fac Fac Upp Upp War Pro Res DSF Res Combat Hostiles Destroyed 84 | . 2 3 . 1 24 . 12 17 3 6 . 1 5 1 . 3 . 5 1 Melee 13 | . . . . . . . . 3 3 1 . . 3 1 . . . 2 . Guns 31 | . 2 3 . 1 3 . 2 9 . 5 . 1 2 . . 3 . . . Cannons 11 | . . . . . 7 . 3 . . . . . . . . . . . 1 AOE 24 | . . . . . 12 . 5 4 . . . . . . . . . 3 . Classes Destroyed 20 | 1 1 1 . 2 10 . 3 2 . . . . . . . . . . . Worker 3 | . . . . . 1 . . 2 . . . . . . . . . . . Builder 2 | . . . . . 1 . . 1 . . . . . . . . . . . Tunneler 1 | 1 . . . . . . . . . . . . . . . . . . . Hauler 3 | . . . . . 1 . . 1 1 . . . . . . . . . . Recycler 2 | . . . . 1 1 . . . . . . . . . . . . . . Carrier 2 | . . . . . 1 . 1 . . . . . . . . . . . . Mechanic 1 | . . . . . . . . 1 . . . . . . . . . . . Operator 2 | . . . . . 1 . . . . . 1 . . . . . . . . Watcher 2 | . . . . . 1 . . 1 . . . . . . . . . . . Swarmer 21 | . . 3 . . 5 . 3 2 . 1 . . 4 . . 3 . . . Grunt 36 | . 2 . . . 12 . 3 11 3 3 . . . 1 . . . . 1 Brawler 2 | . . . . . 1 . 1 . . . . . . . . . . . . Duelist 5 | . . . . . 3 . . 1 . . . . 1 . . . . . . Protector 1 | . . . . . 1 . . . . . . . . . . . . . . Sentry 5 | . . . . . 2 . . . . 2 . 1 . . . . . . . Specialist 3 | . . . . . . . 2 . . . . . . . . . . 1 . Hunter 4 | . . . . . . . 2 . . . . . . . . . . 2 . Programmer 4 | . . . . . . . . 3 . . . . . . . . . 1 . Heavy 2 | . . . . . . . 1 . . . . . . . . . . 1 . Decomposer 2 | . . . . . . . . . . . . . 1 1 . . . . . Assembled 1 | . . . . 1 . . . . . . . . . . . . . . . Best Kill Streak 12 | 1 2 3 . 1 12 . 4 5 2 3 1 1 4 1 . 2 . 1 1 Combat Bots Only 10 | . 2 3 . 1 10 . 4 3 2 3 . 1 4 1 . 2 . 1 1 Max Kills in Single Turn 4 | 1 1 2 . 1 4 . 3 3 1 1 1 1 1 1 . 1 . 1 1 Gunslinging 1 | . . 1 . . . . . . . . . . . . . . . . . Exploded 2 | . . . . . 2 . 2 1 . . . . . . . . . 1 . Melee 1 | . . . . . . . . 1 1 1 . . 1 1 . . . 1 . Uniques/NPCs Destroyed . | . . . . . . . . . . . . . . . . . . . . Combat | -11 -10 -10 -10 -9 -8 -7 -7 -6 -5 -5 -5 -4 -4 -4 -4 -3 -3 -3 -2 -------- Run | Yrd Mat Min Exi Min Mat Fac DSF Fac Fac Gar Fac Fac Upp Upp War Pro Res DSF Res Hostile Shots Fired 751 | . 8 9 . 6 66 . 41 157 7 63 2 4 23 . . 45 . 167 153 Missed 228 | . 3 2 . 3 24 . 15 38 . 14 2 2 14 . . 18 . 55 38 Damage Taken 11977 | . 77 54 . 50 767 . 747 2491 147 1102 . 32 108 . 65 559 . 2320 3458 Core 2663 | . 18 14 . 21 106 . 104 385 . 173 . . 13 . . 141 . 227 1461 Absorbed by Shields 395 | . . . . . . . . 342 . . . 12 41 . . . . . . Redirected to Shielding 30 | . . . . . . . 21 . . 9 . . . . . . . . . Ignored by Resistances 30 | . . . . . . . . . . . . . . . . 30 . . . Regen/Repaired (Parts) 182 | . . . . . 147 . . . . . . 35 . . . . . . . Core Remaining (%) 80 | 100 . . . 78 80 . 85 54 . . 82 . . . . 86 . 82 . Volleys Fired 215 | 2 6 3 . 8 34 . 22 57 3 25 1 3 11 . . 9 . 13 18 Largest 4 | 2 2 2 . 2 2 . 2 4 1 4 4 2 3 . . 2 . 3 2 Hottest 291 | 60 60 85 . 43 125 . 125 232 55 258 258 258 291 . . 75 . 179 233 Shots Fired 441 | 4 12 6 . 16 53 . 35 172 3 40 4 6 19 . . 14 . 23 34 Gun 343 | 4 12 6 . 16 34 . 22 168 3 30 2 6 19 . . 14 . 7 . Cannon 79 | . . . . . 19 . 13 1 . 10 2 . . . . . . . 34 Launcher 16 | . . . . . . . . 3 . . . . . . . . . 13 . Special 3 | . . . . . . . . . . . . . . . . . . 3 . Kinetic 163 | 2 6 3 . 16 34 . 22 39 . 10 2 3 15 . . 10 . 1 . Thermal 199 | 2 6 3 . . 19 . 13 94 . 13 2 3 4 . . 4 . 3 33 Explosive 13 | . . . . . . . . . . . . . . . . . . 13 . Electromagnetic 63 | . . . . . . . . 39 3 17 . . . . . . . 3 1 Robot Hit Streak 13 | 1 8 4 . 5 8 . 6 8 7 13 1 2 5 . . 4 . 13 5 Robot Miss Streak 7 | 2 1 2 . 5 4 . 4 7 . 3 5 1 2 . . 2 . 2 4 Penetration Max . | . . . . . . . . . . . . . . . . . . . . Secondary Targets 3 | . . 2 . . . . . . . . . . . . . 1 . . . Max Gunslinging Chain 1 | . . 1 . . . . . . . . . . . . . 1 . . . Shots Hit Robots 283 | 1 10 4 . 7 22 . 14 99 16 30 1 3 13 2 . 9 . 32 20 Core Hits 172 | 1 6 3 . 5 27 . 15 50 6 16 1 2 8 1 . 5 . 19 7 Critical Kills 4 | . . . . . 2 . 2 . . . . . . . . . . . . Critical Parts Destroyed . | . . . . . . . . . . . . . . . . . . . . Critical Strikes 18 | . . . . . 2 . 2 7 1 3 . . . . . 1 . 2 . Burn 5 | . . . . . . . . 4 . . . . . . . 1 . . . Meltdown 4 | . . . . . 2 . 2 . . . . . . . . . . . . Corrupt 4 | . . . . . . . . 2 . 2 . . . . . . . . . Sever 5 | . . . . . . . . 1 1 1 . . . . . . . 2 . Melee Attacks 77 | . . . . . . . . 20 14 18 . . 3 2 . 3 . 16 1 Impact . | . . . . . . . . . . . . . . . . . . . . Slashing 76 | . . . . . . . . 20 14 17 . . 3 2 . 3 . 16 1 Piercing . | . . . . . . . . . . . . . . . . . . . . Sneak Attacks 5 | . . . . . . . . . 3 . . . . 2 . . . . . Combat Hostiles 3 | . . . . . . . . . 2 . . . . 1 . . . . . Follow-up Attacks 14 | . . . . . . . . 6 5 3 . . . . . . . . . Damage Inflicted 15410 | 12 92 46 . 69 3763 . 2189 2960 731 787 36 114 421 218 . 221 . 2907 844 Guns 3518 | 12 92 46 . 69 193 . 128 1818 62 382 . 114 290 . . 221 . 91 . Cannons 3380 | . . . . . 1497 . 920 . . 101 36 . . . . . . . 826 Explosions 6153 | . . . . . 2073 . 1141 704 . . . . . . . . . 2235 . Melee 2341 | . . . . . . . . 438 669 304 . . 131 218 . . . 581 . Ramming 18 | . . . . . . . . . . . . . . . . . . . 18 Kinetic 1467 | . 37 19 . 69 193 . 128 525 . 101 36 56 148 . . 155 . . . Thermal 8193 | 12 55 27 . . 3525 . 2061 1297 . 89 . 58 142 . . 66 . 43 818 Explosive 2375 | . . . . . 45 . . 95 . . . . . . . . . 2235 . Electromagnetic 1016 | . . . . . . . . 605 62 293 . . . . . . . 48 8 Impact . | . . . . . . . . . . . . . . . . . . . . Slashing 2341 | . . . . . . . . 438 669 304 . . 131 218 . . . 581 . Piercing . | . . . . . . . . . . . . . . . . . . . . Highest Corruption 13 | . . . . . . . . 13 . 1 1 . . . . 10 . . 11 Average Corruption 8 | . . . . . . . . 9 . 1 1 . . . . 10 . . 8 Corruption Purged 7 | . . . . . . . . 7 . . . . . . . . . . . Corruption Blocked 8 | . . . . . . . . . . . . . . . . . . 7 1 Effects 42 | . . . . . . . . 31 . . 2 . . . . 6 . . 3 Message Errors 12 | . . . . . . . . 9 . . . . . . . 2 . . 1 Matter Fused 5 | . . . . . . . . 4 . . . . . . . . . . 1 Heat Flow Errors 8 | . . . . . . . . 7 . . . . . . . 1 . . . Energy Discharges 5 | . . . . . . . . 3 . . 1 . . . . 1 . . . Parts Rejected 1 | . . . . . . . . 1 . . . . . . . . . . . Data Loss (minor) 8 | . . . . . . . . 4 . . 1 . . . . 2 . . 1 Misfires 1 | . . . . . . . . 1 . . . . . . . . . . . Alerts 1 | . . . . . . . . 1 . . . . . . . . . . . Weapon Failures 1 | . . . . . . . . 1 . . . . . . . . . . . Overload Shots 10 | . . . . . . . . . . 3 . 3 4 . . . . . . Overflow Damage 1427 | . . . . . 718 . 310 52 54 . . . . 105 . . . 170 18 Projectiles 792 | . . . . . 475 . 299 . . . . . . . . . . . 18 Explosions 403 | . . . . . 243 . 11 20 . . . . . . . . . 129 . Melee 232 | . . . . . . . . 32 54 . . . . 105 . . . 41 . Knockbacks . | . . . . . . . . . . . . . . . . . . . . Impact . | . . . . . . . . . . . . . . . . . . . . Kinetic . | . . . . . . . . . . . . . . . . . . . . Secondary . | . . . . . . . . . . . . . . . . . . . . Self-Inflicted Damage 592 | . . . . . 102 . 138 270 . . . . . . . . . 73 9 Shots 12 | . . . . . 2 . 2 6 . . . . . . . . . 2 . Rammed 5 | . . . . . . . . . . . . . . . . . . . 5 Targets Rammed 6 | . . . . . . . . 1 . . . . . . . . . . 5 Kicked 1 | . . . . . . . . 1 . . . . . . . . . . . Crushed . | . . . . . . . . . . . . . . . . . . . . Highest Temperature 1290 | 20 82 92 . 8 126 . 80 580 102 601 210 199 504 . 24 181 . . 1290 Average Temperature 215 | 15 36 48 . 3 38 . 43 211 50 173 74 122 177 . 24 107 . . 628 Received Heat Transfer 2157 | . 42 . . 12 351 . 45 700 90 252 . 6 15 . . 18 . 365 261 Effects 90 | . . . . . . . . 33 . 6 . . 4 . . . . . 47 Shutdowns 22 | . . . . . . . . 11 . 2 . . 1 . . . . . 8 Energy Bleed 11 | . . . . . . . . 1 . 2 . . 1 . . . . . 7 Interference 18 | . . . . . . . . 11 . . . . . . . . . . 7 Matter Decay 8 | . . . . . . . . 2 . . . . . . . . . . 6 Short Circuit 6 | . . . . . . . . 2 . . . . . . . . . . 4 Damage (minor) 5 | . . . . . . . . . . 1 . . 2 . . . . . 2 Damage (major) 14 | . . . . . . . . 4 . . . . . . . . . . 10 Damage (core) 6 | . . . . . . . . 2 . 1 . . . . . . . . 3 Siege Activations . | . . . . . . . . . . . . . . . . . . . . Robots Corrupted 1 | . . . . . . . . 1 . . . . . . . . . . . Combat Hostiles 1 | . . . . . . . . 1 . . . . . . . . . . . Parts Fried 1 | . . . . . . . . 1 . . . . . . . . . . . Impact Corruptions . | . . . . . . . . . . . . . . . . . . . . Robots Melted 5 | . . . . . 2 . 3 . . . . . . . . . . . . Combat Hostiles 4 | . . . . . 2 . 2 . . . . . . . . . . . . Parts Melted 18 | . . . . . 8 . 7 3 . . . . . . . . . . . Heat Transferred 9248 | 25 125 74 . . 3301 . 1840 2445 . 148 . 50 150 . . 250 . 100 740 Parts Sabotaged . | . . . . . . . . . . . . . . . . . . . . Parts Stolen . | . . . . . . . . . . . . . . . . . . . . Parts Stripped . | . . . . . . . . . . . . . . . . . . . . Power Chain Reactions 2 | . . . . . . . . 2 . . . . . . . . . . . Alert | -11 -10 -10 -10 -9 -8 -7 -7 -6 -5 -5 -5 -4 -4 -4 -4 -3 -3 -3 -2 ------- Run | Yrd Mat Min Exi Min Mat Fac DSF Fac Fac Gar Fac Fac Upp Upp War Pro Res DSF Res Peak Influence 963 | 5 68 96 . 50 963 369 539 449 251 333 196 203 . . . . 156 365 260 Initial 369 | . 3 26 . . . 369 157 282 174 38 174 95 . . . . 156 117 204 Average 307 | 2 25 92 . 25 747 312 326 320 202 190 185 145 . . . . 156 245 192 Maximum Alert Level 3 | . . . . . 3 1 2 2 1 1 . 1 . . . . . 1 1 Low Security (%) 35 | 100 100 100 . 100 7 . 14 5 45 67 100 91 . . . . 100 39 19 Level 1 43 | . . . . . 1 100 52 78 54 32 . 8 . . . . . 60 80 Level 2 9 | . . . . . 18 . 33 16 . . . . . . . . . . . Level 3 11 | . . . . . 72 . . . . . . . . . . . . . . Level 4 . | . . . . . . . . . . . . . . . . . . . . Level 5 . | . . . . . . . . . . . . . . . . . . . . High Security . | . . . . . . . . . . . . . . . . . . . . Max Security . | . . . . . . . . . . . . . . . . . . . . Sterilizations 1 | . . . . . . . 1 . . . . . . . . . . . . Squads Dispatched 15 | . 2 . . 1 3 1 1 3 1 . 1 1 . . . . . . 1 Investigation 3 | . 1 . . . . 1 . . . . 1 . . . . . . . . Extermination 3 | . . . . . . . . 2 . . . . . . . . . . 1 Reinforcement 6 | . 1 . . . 1 . 1 1 1 . . 1 . . . . . . . Assault 2 | . . . . 1 1 . . . . . . . . . . . . . . Garrison 1 | . . . . . 1 . . . . . . . . . . . . . . Intercept . | . . . . . . . . . . . . . . . . . . . . Searches Triggered . | . . . . . . . . . . . . . . . . . . . . Construction Impeded . | . . . . . . . . . . . . . . . . . . . . Haulers Reinforced 2 | . . . . . . . . 1 1 . . . . . . . . . . Active Scanning Responses . | . . . . . . . . . . . . . . . . . . . . Cargo Convoy Interrupts . | . . . . . . . . . . . . . . . . . . . . Stealth | -11 -10 -10 -10 -9 -8 -7 -7 -6 -5 -5 -5 -4 -4 -4 -4 -3 -3 -3 -2 --------- Run | Yrd Mat Min Exi Min Mat Fac DSF Fac Fac Gar Fac Fac Upp Upp War Pro Res DSF Res Distress Signals 3 | . . . . . 1 . . 1 . . . . . . . . . . 1 Communications Jammed 27 | . . . . . . . . . . . . . . . . . . 5 22 Distress Signals 23 | . . . . . . . . . . . . . . . . . . 1 22 Times Spotted 169 | . 3 3 . 17 30 . 10 22 3 13 2 2 19 . . 24 . 12 9 Peak Tracking Total 8 | . 2 2 . 8 7 . 4 4 2 6 1 3 7 . . 5 . 6 6 Tactical Retreats 23 | . . . . 4 3 . . 1 . 2 . . 8 . . 4 . 1 . Traps | -11 -10 -10 -10 -9 -8 -7 -7 -6 -5 -5 -5 -4 -4 -4 -4 -3 -3 -3 -2 ------- Run | Yrd Mat Min Exi Min Mat Fac DSF Fac Fac Gar Fac Fac Upp Upp War Pro Res DSF Res Traps Triggered 10 | . 1 . . . . . 1 4 1 1 . . . . 1 . . . 1 Indirectly . | . . . . . . . . . . . . . . . . . . . . Trap Hack Attempts . | . . . . . . . . . . . . . . . . . . . . Triggered . | . . . . . . . . . . . . . . . . . . . . Disarmed . | . . . . . . . . . . . . . . . . . . . . Reprogrammed . | . . . . . . . . . . . . . . . . . . . . Reused . | . . . . . . . . . . . . . . . . . . . . Traps Extracted . | . . . . . . . . . . . . . . . . . . . . Installed . | . . . . . . . . . . . . . . . . . . . . Triggered 3 | . . . . . . . . 1 . . . . . . . 2 . . . Machines | -11 -10 -10 -10 -9 -8 -7 -7 -6 -5 -5 -5 -4 -4 -4 -4 -3 -3 -3 -2 ---------- Run | Yrd Mat Min Exi Min Mat Fac DSF Fac Fac Gar Fac Fac Upp Upp War Pro Res DSF Res Machines Disabled 16 | . . . . . 4 . 1 7 . 2 . . . . . . . 1 1 Max in Single Turn 4 | . . . . . 1 . 1 4 . 1 . . . . . . . 1 1 Garrison Access 1 | . . . . . 1 . . . . . . . . . . . . . . Garrison Relay 1 | . . . . . . . . . . 1 . . . . . . . . . Machines Repaired . | . . . . . . . . . . . . . . . . . . . . Machines Dismantled . | . . . . . . . . . . . . . . . . . . . . Machines Sabotaged . | . . . . . . . . . . . . . . . . . . . . Overloaded Fab Kills . | . . . . . . . . . . . . . . . . . . . . Hacking | -11 -10 -10 -10 -9 -8 -7 -7 -6 -5 -5 -5 -4 -4 -4 -4 -3 -3 -3 -2 --------- Run | Yrd Mat Min Exi Min Mat Fac DSF Fac Fac Gar Fac Fac Upp Upp War Pro Res DSF Res Machines Accessed 28 | . . . 1 . 8 4 . 5 1 1 2 2 . . . . 2 . 2 Terminals 14 | . . . . . 5 3 . 3 . 1 1 . . . . . 1 . . Fabricators 3 | . . . . . . . . 1 . . . 1 . . . . 1 . . Repair Stations 3 | . . . . . 2 . . . . . . 1 . . . . . . . Recycling Units 4 | . . . . . 1 . . 1 . . 1 . . . . . . . 1 Scanalyzers 2 | . . . . . . 1 . . . . . . . . . . . . 1 Garrison Access 1 | . . . . . . . . . 1 . . . . . . . . . . Total Hacks 68 | . . . 1 . 21 12 . 10 2 3 6 3 . . . . 3 . 7 Successful 34 | . . . 1 . 13 6 . 1 1 . 3 3 . . . . 1 . 5 Failed 34 | . . . . . 8 6 . 9 1 3 3 . . . . . 2 . 2 Catastrophic 5 | . . . . . . 1 . 2 . . 1 . . . . . 1 . . Database Lockouts . | . . . . . . . . . . . . . . . . . . . . Manual 1 | . . . 1 . . . . . . . . . . . . . . . . Terminals 37 | . . . . . 14 9 . 6 . 3 3 . . . . . 2 . . Fabricators 4 | . . . . . . . . 2 . . . 1 . . . . 1 . . Repair Stations 7 | . . . . . 5 . . . . . . 2 . . . . . . . Recycling Units 11 | . . . . . 2 . . 2 . . 3 . . . . . . . 4 Scanalyzers 6 | . . . . . . 3 . . . . . . . . . . . . 3 Garrison Access 2 | . . . . . . . . . 2 . . . . . . . . . . Terminal Hacks 14 | . . . 1 . 7 4 . 1 . . . . . . . . 1 . . Prototype ID Bank 3 | . . . . . 3 . . . . . . . . . . . . . . Open DSF 3 | . . . . . . 1 . 1 . . . . . . . . 1 . . Branch Access Points 1 | . . . . . 1 . . . . . . . . . . . . . . Terminal Index 1 | . . . . . 1 . . . . . . . . . . . . . . Alert Level 2 | . . . . . 1 1 . . . . . . . . . . . . . Unreport Threat 1 | . . . . . . 1 . . . . . . . . . . . . . Dispatch Records 1 | . . . . . . 1 . . . . . . . . . . . . . Zone Layout 1 | . . . . . 1 . . . . . . . . . . . . . . Derelict Proto ID Bank 1 | . . . 1 . . . . . . . . . . . . . . . . Fabricator Hacks 1 | . . . . . . . . . . . . 1 . . . . . . . Build 1 | . . . . . . . . . . . . 1 . . . . . . . Repair Station Hacks 6 | . . . . . 4 . . . . . . 2 . . . . . . . Scan Component 3 | . . . . . 2 . . . . . . 1 . . . . . . . Repair 3 | . . . . . 2 . . . . . . 1 . . . . . . . Recycling Unit Hacks 8 | . . . . . 2 . . . . . 3 . . . . . . . 3 Process 3 | . . . . . 1 . . . . . 1 . . . . . . . 1 Report Inventory 2 | . . . . . . . . . . . 1 . . . . . . . 1 Retrieve Matter 3 | . . . . . 1 . . . . . 1 . . . . . . . 1 Scanalyzer 4 | . . . . . . 2 . . . . . . . . . . . . 2 Insert Component 2 | . . . . . . 1 . . . . . . . . . . . . 1 Analyze 2 | . . . . . . 1 . . . . . . . . . . . . 1 Garrison Access Hacks 1 | . . . . . . . . . 1 . . . . . . . . . . Unlock Access 1 | . . . . . . . . . 1 . . . . . . . . . . Unauthorized Hacks . | . . . . . . . . . . . . . . . . . . . . Terminals . | . . . . . . . . . . . . . . . . . . . . Fabricators . | . . . . . . . . . . . . . . . . . . . . Repair Stations . | . . . . . . . . . . . . . . . . . . . . Recycling Units . | . . . . . . . . . . . . . . . . . . . . Scanalyzers . | . . . . . . . . . . . . . . . . . . . . Garrison Access . | . . . . . . . . . . . . . . . . . . . . Data Cores Recovered 1 | . . . . . . . . . . . 1 . . . . . . . . Used 1 | . . . . . . . . . . . 1 . . . . . . . . Hacking Detections 22 | . . . . . 7 4 . 4 . 1 2 1 . . . . 1 . 2 Full Trace Events 2 | . . . . . . 1 . . . . 1 . . . . . . . . Feedback Events . | . . . . . . . . . . . . . . . . . . . . Feedback Blocked . | . . . . . . . . . . . . . . . . . . . . Robot Schematics Acquired . | . . . . . . . . . . . . . . . . . . . . Robots Built 1 | . . . . . . . . . . . . 1 . . . . . . . Authchips . | . . . . . . . . . . . . . . . . . . . . Time 40 | . . . . . . . . . . . . 40 . . . . . . . Total Robot Build Rating 1 | . . . . . . . . . . . . 1 . . . . . . . Part Schematics Acquired 2 | . . . . . . 1 . . . . . . . . . . . . 1 Parts Built . | . . . . . . . . . . . . . . . . . . . . Authchips . | . . . . . . . . . . . . . . . . . . . . Time . | . . . . . . . . . . . . . . . . . . . . Total Part Build Rating . | . . . . . . . . . . . . . . . . . . . . Parts Repaired 3 | . . . . . 2 . . . . . . 1 . . . . . . . Time 108 | . . . . . 64 . . . . . . 44 . . . . . . . Parts Recycled . | . . . . . . . . . . . . . . . . . . . . Recycled Matter 354 | . . . . . 321 . . . . . 28 . . . . . . . 5 Retrieved Matter 442 | . . . . . 409 . . . . . 28 . . . . . . . 5 Retrieved Components . | . . . . . . . . . . . . . . . . . . . . Parts Scanalyzed 2 | . . . . . . 1 . . . . . . . . . . . . 1 Part Schematics Acquired 2 | . . . . . . 1 . . . . . . . . . . . . 1 Parts Damaged . | . . . . . . . . . . . . . . . . . . . . Bothacking | -11 -10 -10 -10 -9 -8 -7 -7 -6 -5 -5 -5 -4 -4 -4 -4 -3 -3 -3 -2 ------------ Run | Yrd Mat Min Exi Min Mat Fac DSF Fac Fac Gar Fac Fac Upp Upp War Pro Res DSF Res Used RIF Installer 1 | . . . . . . . . . . 1 . . . . . . . . . Robots Hacked 1 | . . . . . . . . . . 1 . . . . . . . . . Non-combat . | . . . . . . . . . . . . . . . . . . . . Combat 1 | . . . . . . . . . . 1 . . . . . . . . . Robot Hacks Applied 1 | . . . . . . . . . . 1 . . . . . . . . . formatsys_high 1 | . . . . . . . . . . 1 . . . . . . . . . Relay Couplers Released 8 | . . . . . 3 . . . . 5 . . . . . . . . . Machine Destruction 8 | . . . . . 3 . . . . 5 . . . . . . . . . Attached 1 | . . . . . . . . . . 1 . . . . . . . . . Fabnet Peak Effective % . | . . . . . . . . . . . . . . . . . . . . Robots Rewired . | . . . . . . . . . . . . . . . . . . . . Allies Hacked . | . . . . . . . . . . . . . . . . . . . . Hacks Repelled . | . . . . . . . . . . . . . . . . . . . . Allies | -11 -10 -10 -10 -9 -8 -7 -7 -6 -5 -5 -5 -4 -4 -4 -4 -3 -3 -3 -2 -------- Run | Yrd Mat Min Exi Min Mat Fac DSF Fac Fac Gar Fac Fac Upp Upp War Pro Res DSF Res Total Allies 5 | . . . . 1 . . . . . 3 . 1 . . . . . . . Largest Group 2 | . . . . 1 1 . . . . 2 . 1 . . . . . . . Highest-Rated Group 89 | . . . . 31 31 . . . . 89 . 10 . . . . . . . Highest-Rated Ally 51 | . . . . 31 31 . . . . 51 . 10 . . . . . . . Total Orders . | . . . . . . . . . . . . . . . . . . . . Ally Attacks 36 | . . . . 1 21 . . . . 14 . . . . . . . . . Total Damage 576 | . . . . 20 255 . . . . 301 . . . . . . . . . Kills 5 | . . . . . 1 . . . . 4 . . . . . . . . . Allies Corrupted . | . . . . . . . . . . . . . . . . . . . . Allies Melted . | . . . . . . . . . . . . . . . . . . . . Intel | -11 -10 -10 -10 -9 -8 -7 -7 -6 -5 -5 -5 -4 -4 -4 -4 -3 -3 -3 -2 ------- Run | Yrd Mat Min Exi Min Mat Fac DSF Fac Fac Gar Fac Fac Upp Upp War Pro Res DSF Res Robot Analysis Total . | . . . . . . . . . . . . . . . . . . . . Derelict Logs Recovered 4 | . . 1 . . . . . . . . . . 1 2 . . . . . Drone Launches . | . . . . . . . . . . . . . . . . . . . . Drone Recoveries . | . . . . . . . . . . . . . . . . . . . . Exploration | -11 -10 -10 -10 -9 -8 -7 -7 -6 -5 -5 -5 -4 -4 -4 -4 -3 -3 -3 -2 ------------- Run | Yrd Mat Min Exi Min Mat Fac DSF Fac Fac Gar Fac Fac Upp Upp War Pro Res DSF Res Turns Passed 6614 | 60 110 117 133 446 919 193 427 1392 403 471 100 89 294 87 32 307 194 400 440 Spaces Moved 6004 | 43 89 186 355 586 445 109 203 679 234 313 198 120 902 330 137 528 101 154 292 Core 110 | 3 . . . . . . . . . . . . . . . . . . 107 Treads 1367 | . . . . 3 401 109 203 219 . . . . . . . . 93 154 185 Legs 815 | . . . . 11 . . . 460 234 110 . . . . . . . . . Wheels 339 | 40 89 5 . 161 44 . . . . . . . . . . . . . . Hover . | . . . . . . . . . . . . . . . . . . . . Flight 3373 | . . 181 355 411 . . . . . 203 198 120 902 330 137 528 8 . . Fastest Speed 5 | 50 100 37 37 37 100 163 162 97 120 84 14 20 5 5 23 5 34 145 50 Average Speed 83 | 98 100 41 37 56 156 170 162 149 128 100 36 22 24 22 23 49 178 184 124 Slowest Speed 1100 | 100 100 280 37 160 165 243 163 240 190 120 84 90 93 23 23 280 225 305 1100 Overloaded Moves 719 | . . . . . . . . . . 99 198 75 181 10 . 156 . . . Propulsion Burnouts 1 | . . . . . . . . . . . . . . . . 1 . . . Robots Hopped 5 | . . . 1 4 . . . . . . . . . . . . . . . Cave-ins Triggered . | . . . . . . . . . . . . . . . . . . . . Exploration Rate (%) 39 | 4 22 47 68 90 58 3 98 20 4 24 5 5 94 51 20 67 3 97 9 Regions Visited 19 Branch Regions 7 Pre-discovered Areas 2 | . . 1 . . . . . . . . . . . 1 . . . . . Known Exits Taken 3 | . . . . . . 1 . . 1 . . . . . . . 1 . . Unknown Exits Taken 13 | 1 1 1 1 1 1 . . 1 . . 1 1 1 1 1 1 . . . Scrap Searched 8 | . . . . 3 . . . . . . . . 3 1 . 1 . . . Spaces Dug 14 | . . . . . . . 6 8 . . . . . . . . . . . Terrain Destroyed 508 | . . . . . 210 . 67 49 . 7 1 4 2 . . 3 . 154 11 Melee . | . . . . . . . . . . . . . . . . . . . . Projectile 39 | . . . . . 6 . 4 1 . 7 1 4 2 . . 3 . . 11 AOE 469 | . . . . . 204 . 63 48 . . . . . . . . . 154 . Terrain Rammed . | . . . . . . . . . . . . . . . . . . . . Walls Destroyed . | . . . . . . . . . . . . . . . . . . . . Machines Disabled . | . . . . . . . . . . . . . . . . . . . . Actions | -11 -10 -10 -10 -9 -8 -7 -7 -6 -5 -5 -5 -4 -4 -4 -4 -3 -3 -3 -2 --------- Run | Yrd Mat Min Exi Min Mat Fac DSF Fac Fac Gar Fac Fac Upp Upp War Pro Res DSF Res Total 7094 | 53 99 221 356 682 589 116 248 913 332 429 223 175 958 339 136 557 115 221 332 Wait 348 | . . 4 . 78 36 . 8 65 43 34 . 44 21 . . . . 13 2 Move 5976 | 42 88 185 352 577 444 108 202 678 234 312 197 119 901 329 136 527 100 153 292 Hop 5 | . . . 1 4 . . . . . . . . . . . . . . . Pick Up 89 | 2 3 4 1 . 23 . 3 13 18 7 . 1 1 . . 3 4 2 4 Fast Attach 112 | 7 1 4 . 5 11 2 5 27 3 5 6 4 3 3 . 3 4 17 2 Attach 60 | . . 1 . . 2 2 . 13 3 15 2 2 4 . . 3 5 2 6 Detach 19 | . . . . . . 1 . 3 . 3 . 1 7 . . 3 1 . . Swap 48 | . . 8 . 3 11 1 1 14 3 1 4 . 1 1 . . . . . Drop 156 | . 1 12 2 7 28 2 7 28 17 14 13 1 6 4 . 6 1 5 2 Fire 215 | 2 6 3 . 8 34 . 22 57 3 25 1 3 11 . . 9 . 13 18 Melee 59 | . . . . . . . . 14 8 12 . . 3 2 . 3 . 16 1 Ram 5 | . . . . . . . . . . . . . . . . . . . 5 Kick 1 | . . . . . . . . 1 . . . . . . . . . . . Crush . | . . . . . . . . . . . . . . . . . . . . Escape Stasis . | . . . . . . . . . . . . . . . . . . . . Rewire 1 | . . . . . . . . . . 1 . . . . . . . . . Trap . | . . . . . . . . . . . . . . . . . . . . Miscellaneous . | . . . . . . . . . . . . . . . . . . . . Route ------- -11/Scrapyard -10/Materials -10/Mines (discovered 2 exits: [*Mat] / *Exi) -10/Exiles (discovered 2 exits: [*Min x2]) -9/Mines -8/Materials -7/Factory -7/DSF -6/Factory -5/Factory -5/Garrison -5/Factory -4/Factory -4/Upper Caves -4/Upper Caves -4/Warlord -3/Proximity Caves -3/Research (discovered 2 exits: Res / DSF) -3/DSF -2/Research History --------- Turn | Location | Event 15 | -11/Scrapyard | Discovered new exit (range 16) 61 | -11/Scrapyard | Entered Materials 127 | -10/Materials | Discovered new exit (range 14) 171 | -10/Materials | Entered Mines 211 | -10/Mines | Discovered new exit (range 16) 216 | -10/Mines | Joined a pair of Derelicts in attacking an 0b10 outpost 287 | -10/Mines | Deemed a non-threat by the Exiles lab entrance 287 | -10/Mines | Discovered new exit (range 5) 288 | -10/Mines | Entered Exiles 294 | -10/Exiles | Discovered new exit (range 15) 306 | -10/Exiles | Met 8R-AWN 312 | -10/Exiles | Met EX-HEX 323 | -10/Exiles | Met EX-BIN 328 | -10/Exiles | Aligned with FarCom system 329 | -10/Exiles | Given EX-Vault access code 337 | -10/Exiles | Opened EX-Vault 342 | -10/Exiles | Found YOLO Cannon 350 | -10/Exiles | Warned to stay clear of 0b10 Research branches 355 | -10/Exiles | Exiles lab attacked by MAIN.C 379 | -10/Exiles | Discovered new exit (range 10) 421 | -10/Exiles | Left Exiles lab with YOLO Cannon 421 | -10/Exiles | Entered Mines 422 | -9/Mines | Assembled infested the area 822 | -9/Mines | Discovered new exit (range 13) 855 | -9/Mines | Met a Derelict testing a Signal Generator 867 | -9/Mines | Entered Materials 867 | -8/Materials | Accompanied by 1 ally 867 | -8/Materials | Evolved 4 slots: Power x1, Propulsion x1, Utility x1, Weapon x1 938 | -8/Materials | Garrison activated, responded to threat 971 | -8/Materials | Destroyed 10 combat bots 989 | -8/Materials | Build established: Scavenger-Skirmisher 1147 | -8/Materials | Destroyed 7 combat bots 1272 | -8/Materials | Repaired Lgt. Treads 1581 | -8/Materials | Repaired Imp. Heat Sink 1636 | -8/Materials | Discovered new exit (range 14) 1786 | -8/Materials | Entered Factory 1786 | -7/Factory | Evolved 2 slots: Propulsion x1, Utility x1 1977 | -7/Factory | Identified exit to DSF 1979 | -7/Factory | Entered DSF 2028 | -7/DSF | Discovered new exit (range 19) 2034 | -7/DSF | Additional patrols routed to DSF 2358 | -7/DSF | Sterilization system engaged 2378 | -7/DSF | Ambient heat levels rising (+10) 2393 | -7/DSF | Ambient heat levels rising (+10) 2406 | -7/DSF | Entered Factory 2406 | -6/Factory | Evolved 2 slots: Utility x1, Weapon x1 2700 | -6/Factory | Build established: Scavenger-Tank 2808 | -6/Factory | Lost 3 parts (2n1w) 2867 | -6/Factory | System corruption reached 10% 3000 | -6/Factory | Found Powered Armor 3003 | -6/Factory | Found Powered Armor 3558 | -6/Factory | Lost 4 parts (3p1w) 3666 | -6/Factory | Discovered new exit (range 5) 3798 | -6/Factory | Entered another Factory area 3798 | -5/Factory | Evolved 2 slots: Utility x1, Weapon x1 3820 | -5/Factory | Build established: Scavenger-Gladiator 4201 | -5/Factory | Identified exit to Garrison 4201 | -5/Factory | Entered Garrison 4219 | -5/Garrison | Triggered checkpoint 4283 | -5/Garrison | Garrison Relay disabled 4377 | -5/Garrison | Installed Relay Interface Framework 4458 | -5/Garrison | Rescued a captive Derelict 4468 | -5/Garrison | Rescued a captive Derelict 4563 | -5/Garrison | Triggered checkpoint 4668 | -5/Garrison | Discovered new exit (range 6) 4672 | -5/Garrison | Entered Factory 4760 | -5/Factory | Discovered new exit (range 10) 4772 | -5/Factory | Entered another Factory area 4772 | -4/Factory | Evolved 2 slots: Power x1, Propulsion x1 4832 | -4/Factory | Fabricated A-02 Transporter? 4839 | -4/Factory | Repaired Cld. Nuclear Pulse Thruster 4846 | -4/Factory | Discovered new exit (range 9) 4861 | -4/Factory | Entered Upper Caves 4863 | -4/Upper Caves | Encountered a Warlord checkpoint 4999 | -4/Upper Caves | Spotted B-86 Titan 5038 | -4/Upper Caves | Attracted the attention of an 0b10 outpost 5114 | -4/Upper Caves | Learned Research trap positions 5144 | -4/Upper Caves | Discovered new exit (range 9) 5155 | -4/Upper Caves | Entered another Upper Caves area 5200 | -4/Upper Caves | Learned 12 Research zone layouts 5201 | -4/Upper Caves | Build established: Scavenger-Sprinter 5209 | -4/Upper Caves | Learned location of Testing (-3) 5234 | -4/Upper Caves | Spotted B-86 Titan 5240 | -4/Upper Caves | Discovered new exit (range 7) 5242 | -4/Upper Caves | Entered Warlord 5252 | -4/Warlord | RIF detected upon attempting to enter Warlord's base 5252 | -4/Warlord | Attacked by Warlord forces 5256 | -4/Warlord | Spotted BA-VHN(B) 5256 | -4/Warlord | Spotted LT-AE4(B) 5266 | -4/Warlord | Discovered new exit (range 14) 5274 | -4/Warlord | Entered Proximity Caves 5332 | -3/Proximity Caves | Lost 3 parts (1n2u) 5400 | -3/Proximity Caves | System corruption reached 10% 5459 | -3/Proximity Caves | Spotted B-86 Titan 5494 | -3/Proximity Caves | Spotter reported a threat 5535 | -3/Proximity Caves | Lost 4 parts (1p3n) 5576 | -3/Proximity Caves | Discovered new exit (range 15) 5581 | -3/Proximity Caves | Entered Research 5581 | -3/Research | Evolved 2 slots: Power x1, Utility x1 5582 | -3/Research | Identified exit to Research 5583 | -3/Research | Loaded intel: 100 trap records 5649 | -3/Research | Found Fusion Bomb Launcher 5771 | -3/Research | Identified exit to DSF 5775 | -3/Research | Entered DSF 5828 | -3/DSF | Found Fusion Bomb Launcher 5836 | -3/DSF | Additional patrols routed to DSF 5841 | -3/DSF | Found Fusion Bomb Launcher 5844 | -3/DSF | Found Fusion Bomb Launcher 5848 | -3/DSF | Found Fusion Bomb Launcher 5852 | -3/DSF | Found Fusion Bomb Launcher 5859 | -3/DSF | Lost 6 parts (2n1u3w) 6050 | -3/DSF | Discovered exit to Research (range 10) 6112 | -3/DSF | Lost 3 parts (1p2w) 6175 | -3/DSF | Entered Research 6175 | -2/Research | Evolved 2 slots: Utility x1, Weapon x1 6403 | -2/Research | Build established: Hacker-Skirmisher 6515 | -2/Research | Core integrity fell below 50% 6544 | -2/Research | System corruption reached 10% 6546 | -2/Research | Released all parts (7) 6573 | -2/Research | Lost 14 parts (3p3n3u5w) 6585 | -2/Research | Core integrity fell below 20% 6615 | -2/Research | Destroyed by G-73 Enforcer with Phase Gun Last Messages --------------- 06540_ Overheating: Matter decay (-7). 06542_ Broken Enh. Nova Cannon destroyed. 06544_ Slug penetrates Wall. 06545_ Dropped Broken Biometal Heavy Treads. 06546_ System corrupted: Component data lost. 06546_ Released Imp. Target Analyzer. 06546_ Released System Shield. 06546_ Released Power Sword. 06546_ Released Adv. Corruption Screen. 06546_ Released Adv. Transmission Jammer. 06546_ Released System Shield. 06546_ Released Imp. Hacking Suite. 06562_ Acquired Imp. Targeting Computer. 06583_ Slammed into P-80 Master. 06583_ Destabilizing: Core damaged (-14). 06584_ Slammed into P-80 Master. 06589_ 5OPAF%HD